{"text_format":"1","workbook":"xlsx","n_sheets":3,"sheets":["ورقة1","ورقة2","ورقة3"],"not_rendered":{"charts":0,"images":0,"macros":1,"external_links":0,"defined_names":2,"comments":0,"pivot_tables":0},"unopened":[],"bounds":{"document_bytes":16777216,"sheet_cells":100000,"rows_first":2000,"rows_last":500,"rows_between":2000,"halvings":0,"cell_chars":16384,"cell_head_chars":4096},"cells_cut":0,"cells_raw":0,"read":"whole","date_system":"1900"}

{"sheet":"ورقة1","index":0,"n_rows":35,"n_cols":17,"rows_kept":35,"cut":false,"hidden":false,"merged":[[0,0,0,2],[1,0,2,2],[1,16,2,16],[1,4,2,4],[1,5,2,5],[1,6,2,6],[1,7,2,7],[1,8,2,8],[1,9,2,9],[1,10,2,10],[1,11,2,11],[1,12,2,12],[1,13,2,13],[1,14,2,14],[1,15,2,15]]}
[{"$f":"TODAY()","v":"2019-06-07"},null,null,"قيمة",{"$f":"SUMPRODUCT(--E5:E34)","v":80},{"$f":"SUMPRODUCT(--F5:F34)","v":40},{"$f":"SUMPRODUCT(--G5:G34)","v":0},0,0,0,0,0,0,0,0,0,"المجموع الكلى"]
["برنامج تسديد الاشتراكات",null,null,"الاشتراك","يناير","فبراير","مارس","أبريل","مايو","يونيو","يوليه","أغسطس","سبتمبر","أكتوبر","نوفمبر","ديسمبر",{"$f":"SUM(Q5:Q34)","v":120}]
[null,null,null,"الشهرى",null,2,3,4,5,6,7,8,9,10,11,12]
[]
[1,"ام عماد","01116332822","40","40","40",null,null,null,null,null,null,null,null,null,null,{"$f":"SUMPRODUCT(--E5:P5)","v":80}]
[2,"عماد 1","01116332823","40","40",null,null,null,null,null,null,null,null,null,null,null,{"$f":"SUMPRODUCT(--E6:P6)","v":40}]
[3,"عماد 2","01116332824","40",null,null,null,null,null,null,null,null,null,null,null,null,0]
[4,"تريزة","01116332825","40",null,null,null,null,null,null,null,null,null,null,null,null,0]
[5,"احمد جاكوت","01116332826","40",null,null,null,null,null,null,null,null,null,null,null,null,0]
[6,"سناء خليفة الأمير-منال","01116332827","40",null,null,null,null,null,null,null,null,null,null,null,null,0]
[7,"طارق زكريا","01116332828","40",null,null,null,null,null,null,null,null,null,null,null,null,0]
[8,"ناصر عوض الله","01116332829","40",null,null,null,null,null,null,null,null,null,null,null,null,0]
[9,"مشيل (عماد)","01116332830","40",null,null,null,null,null,null,null,null,null,null,null,null,0]
[10,222,"01116332831","40",null,null,null,null,null,null,null,null,null,null,null,null,0]
[11,2,"01116332832","40",null,null,null,null,null,null,null,null,null,null,null,null,0]
[12,5464,"01116332833","40",null,null,null,null,null,null,null,null,null,null,null,null,0]
[13,null,"01116332834","40",null,null,null,null,null,null,null,null,null,null,null,null,0]
[14,null,"01116332835","40",null,null,null,null,null,null,null,null,null,null,null,null,0]
[15,null,"01116332836","40",null,null,null,null,null,null,null,null,null,null,null,null,0]
[16,null,"01116332837","40",null,null,null,null,null,null,null,null,null,null,null,null,0]
[17,null,"01116332838","40",null,null,null,null,null,null,null,null,null,null,null,null,0]
[18,null,"01116332839","40",null,null,null,null,null,null,null,null,null,null,null,null,0]
[19,null,"01116332840","40",null,null,null,null,null,null,null,null,null,null,null,null,0]
[20,null,"01116332841","40",null,null,null,null,null,null,null,null,null,null,null,null,0]
[21,null,"01116332842","40",null,null,null,null,null,null,null,null,null,null,null,null,0]
[22,null,"01116332843","40",null,null,null,null,null,null,null,null,null,null,null,null,0]
[23,null,"01116332844","40",null,null,null,null,null,null,null,null,null,null,null,null,0]
[24,null,"01116332845","40",null,null,null,null,null,null,null,null,null,null,null,null,0]
[25,null,"01116332846","40",null,null,null,null,null,null,null,null,null,null,null,null,0]
[26,null,"01116332847","40",null,null,null,null,null,null,null,null,null,null,null,null,0]
[27,null,"01116332848","40",null,null,null,null,null,null,null,null,null,null,null,null,0]
[28,null,"01116332849","40",null,null,null,null,null,null,null,null,null,null,null,null,0]
[29,null,"01116332850","40",null,null,null,null,null,null,null,null,null,null,null,null,0]
[30,null,"01116332851","40",null,null,null,null,null,null,null,null,null,null,null,null,0]
[null,null,null,{"$f":"SUMPRODUCT(--D5:D34)","v":1200},{"$f":"SUMPRODUCT(--E5:E34)","v":80},{"$f":"SUMPRODUCT(--F5:F34)","v":40},0,0,0,0,0,0,0,0,0,0]

{"sheet":"ورقة2","index":1,"n_rows":1,"n_cols":1,"rows_kept":1,"cut":false,"hidden":false,"merged":[]}
[1]

{"sheet":"ورقة3","index":2,"n_rows":0,"n_cols":0,"rows_kept":0,"cut":false,"hidden":false,"merged":[]}